[Event "Turkey IS Bank Super League 2017"]
[Site "Darica-Kocaeli"]
[Date "2017.08.04"]
[Round "10"]
[White "Duran, Esma Doga"]
[Black "Ayazmali, Gizem"]
[Result "1-0"]
[ECO "E94"]
[WhiteElo "1939"]
[BlackElo "1849"]
[Annotator "NA"]
[PlyCount "135"]
[EventType "team-tourn"]
[EventCountry "TUR"]
[SourceTitle "playchess.com"]
[Source "ChessBase"]
[SourceQuality "1"]
[TimeControl "40/5400+30:1800+30"]

{[%evp 14,135,69,33,37,8,9,0,0,-7,9,-12,12,6,7,7,31,32767,-33,-36,-44,-44,32767,-175,-27,-24,-22,-27,-24,-22,-4,-17,-10,-10,0,-13,-3,-4,0,-13,-12,-2,0,14,15,0,0,32767,33,11,32767,6,333,32767,32767,335,296,410,331,432,32767,32767,32767,354,359,360,370,424,32767,32767,32767,497,464,541,437,607,579,536,316,474,32767,32767,32767,32767,32767,289,32767,32767,32767,32767,32767,32767,32767,4904,5181,868,755,1298,32767,1708,1995,12833,737,2373,12849,2141,1768,4599,12850,12851,12851,11000,5845,12851,12851,10846,29949,29957,12851,29971,12851,12839,29953,29981]} 1. d4 {[%emt 0:00:30]} Nf6 {[%emt 0:01:00]} 2. c4 {[%emt 0:00:30]} g6 {[%emt 0:00:30]} 3. Nc3 {[%emt 0:00:30]} Bg7 {[%emt 0:00:30]} 4. e4 {[%emt 0:00:30]} d6 {[%emt 0:00:30]} 5. Nf3 {[%emt 0:00:30]} O-O {[%emt 0:00:30]} 6. Be2 {[%emt 0:00:30]} Nbd7 {[%emt 0:00:30]} 7. O-O {[%emt 0:00:00]} c6 {[%emt 0:00:00]} 8. h3 {[%emt 0:10:00]} e5 {[%emt 0:03:00]} 9. dxe5 {[%emt 0:02:30]} dxe5 {[%emt 0:00:30]} 10. Be3 {[%emt 0:03:30]} Qe7 {[%emt 0:02:30]} 11. Qc2 {[%emt 0:02:30]} Nh5 {[%emt 0:05:30] E94: King's Indian: Classical: 6 Be2 e5 7 0-0: Various Black 7th moves} 12. Rfd1 {[%emt 0:09:30]} Nc5 {[%emt 0:04:30]} 13. b4 {[%emt 0:04:30]} Ne6 {[%emt 0:02:30] LiveBook: 3 Games} 14. c5 {[%emt 0:03:30]} Nhf4 {[%emt 0:02:30]} 15. Bc4 {[%emt 0:03:30]} Ng5 {[%emt 0:01:30]} 16. Nxg5 {[%emt 0:07:30]} Qxg5 {[%emt 0:00:30]} 17. Bxf4 $1 {[%emt 0:00:00]} exf4 {[%emt 0:00:00]} 18. Qd3 $146 {[%emt 0:00:00]} (18. Rd3 $1 $15) 18... Qf6 {[%emt 0:08:00]} (18... a5 $19 19. Rac1 axb4) 19. Rac1 {[%emt 0:02:30]} Be6 {[%emt 0:06:30]} 20. Bxe6 {[%emt 0:06:30]} Qxe6 {[%emt 0:00:30]} 21. Qd7 {[%emt 0:02:30]} Rad8 {[%emt 0:02:30]} 22. Qxe6 {[%emt 0:16:30]} fxe6 {[%emt 0:00:30]} 23. Ne2 {[%emt 0:01:30]} Be5 {[%emt 0:02:30]} 24. f3 {[%emt 0:00:30]} Kf7 {[%emt 0:03:30]} 25. Kf2 {[%emt 0:00:30]} Ke7 {[%emt 0:00:30]} 26. Ke1 {[%emt 0:01:30]} Rxd1+ {[%emt 0:01:30]} 27. Rxd1 {[%emt 0:00:30]} Rd8 {[%emt 0:00:00]} 28. Rxd8 {[%emt 0:00:30]} Kxd8 {[%emt 0:00:00]} 29. Kd2 {[%emt 0:00:30]} b6 {[%emt 0:01:30]} 30. Kd3 {[%emt 0:01:30]} Kd7 {[%emt 0:01:30]} 31. cxb6 {[%emt 0:06:30]} axb6 {[%emt 0:00:30]} 32. a4 {[%emt 0:00:34]} c5 $2 {[%emt 0:14:30]} (32... b5 $11) 33. bxc5 {[%emt 0:02:09]} bxc5 {[%emt 0:00:30]} 34. Kc4 {[%emt 0:00:00]} Kc6 {[%emt 0:00:30]} 35. Nc1 {[%emt 0:00:49]} Bc7 {[%emt 0:20:38]} 36. Nd3 {[%emt 0:00:17]} Bd6 {[%emt 0:00:46]} 37. e5 {[%emt 0:01:11]} Bc7 {[%emt 0:00:06]} 38. Nxc5 {[%emt 0:00:22]} ({Don't take} 38. Nxf4 Bxe5 39. Nxe6 Bd6 $18) 38... Bxe5 {[%emt 0:00:35]} 39. Nxe6 {[%emt 0:00:12]} h6 {[%emt 0:01:32]} 40. a5 {[%emt 0:00:00]} Bb8 {[%emt 0:03:23]} 41. Nd4+ {[%emt 0:07:26]} Kb7 {[%emt 0:05:30]} 42. Kd5 {[%emt 0:09:30]} Bc7 {[%emt 0:03:30]} 43. Ne6 {[%emt 0:00:30]} Bxa5 {[%emt 0:00:30]} 44. Nxf4 {[%emt 0:00:30]} g5 {[%emt 0:00:00]} 45. Ne6 {[%emt 0:00:30]} Kc8 {[%emt 0:02:00]} 46. Kd6 {[%emt 0:01:30]} Bb4+ {[%emt 0:00:30]} 47. Kc6 {[%emt 0:00:30]} Bc3 {[%emt 0:00:30]} 48. g4 {[%emt 0:00:30]} Bb2 {[%emt 0:01:30]} 49. Kd6 {[%emt 0:01:30]} Bf6 {[%emt 0:01:30]} 50. Nf8 {[%emt 0:01:30]} Kd8 {[%emt 0:01:30]} 51. Ke6 {[%emt 0:00:30]} Bb2 {[%emt 0:00:30]} 52. Kf7 {[%emt 0:00:30]} Bc3 {[%emt 0:01:30]} 53. Ne6+ {[%emt 0:00:30]} Kd7 {[%emt 0:00:30]} 54. Ng7 {[%emt 0:00:30]} Kd6 {[%emt 0:01:30]} 55. Nf5+ {[%emt 0:00:30]} Ke5 {[%emt 0:00:00]} 56. Kg6 {[%emt 0:01:30]} Kf4 {[%emt 0:00:00]} 57. Kxh6 {[%emt 0:00:30]} Bd2 {[%emt 0:01:30]} 58. Nd6 {[%emt 0:08:45]} (58. Kh5 $142 Bc3 59. Nd6) 58... Kxf3 {[%emt 0:01:30] [#]} 59. Kh5 $1 {[%emt 0:00:14]} Kg2 {[%emt 0:17:07]} 60. Ne4 $1 {[%emt 0:00:11]} Bb4 {[%emt 0:02:38]} 61. Nxg5 {[%emt 0:00:30]} Kg3 {[%emt 0:00:15]} 62. h4 {[%emt 0:00:18]} Be7 {[%emt 0:00:11]} 63. Ne4+ {[%emt 0:00:46]} Kf4 {[%emt 0:00:06]} 64. Nc3 {[%emt 0:00:05]} Ke5 {[%emt 0:00:16]} 65. g5 {[%emt 0:00:39]} Kf5 {[%emt 0:01:04]} 66. Nd5 {[%emt 0:00:42]} Bf8 {[%emt 0:02:20]} 67. Ne3+ $18 {[%emt 0:00:18]} (67. Nc7 $142 Ba3 68. g6 Bb2 69. Ne8 Bh8 70. g7 Bxg7 71. Nxg7+ Kf6 72. Kh6) 67... Ke4 {[%emt 0:00:19]} 68. Kg6 {[%emt 0:02:15]} 1-0

[Event "Turkey IS Bank Super League 2017"]
[Site "Darica-Kocaeli"]
[Date "2017.08.04"]
[Round "10"]
[White "Yassibag, Ipek Asli"]
[Black "Kargaci, Humeyra"]
[Result "1-0"]
[ECO "C56"]
[WhiteElo "1880"]
[BlackElo "1737"]
[Annotator "NA RC"]
[PlyCount "39"]
[EventType "team-tourn"]
[EventCountry "TUR"]
[SourceTitle "playchess.com"]
[Source "ChessBase"]
[SourceQuality "1"]
[TimeControl "40/5400+30:1800+30"]

{[%evp 16,33,23,32767,32767,-25,414,427,727,759,32767,32767,884,945,2332,2449,2226,721,2611,2527]} 1. e4 {[%emt 0:00:30]} e5 {[%emt 0:01:00]} 2. Nf3 {[%emt 0:00:30]} Nc6 {[%emt 0:00:30]} 3. Bc4 {[%emt 0:00:30]} Bc5 {[%emt 0:00:30]} 4. O-O {[%emt 0:00:30]} Nf6 {[%emt 0:00:30]} 5. d4 {[%emt 0:00:30]} exd4 {[%emt 0:00:30]} 6. e5 {[%emt 0:00:30]} d5 {[%emt 0:00:30]} 7. exf6 {[%emt 0:00:30]} dxc4 {[%emt 0:00:30]} 8. Re1+ {[%emt 0:00:00]} Be6 {[%emt 0:00:00]} 9. Ng5 {[%emt 0:00:00]} g6 {[%emt 0:00:00]} 10. Qf3 {[%emt 0:54:30]} Qd7 $2 {[%emt 0:10:30] [#]} (10... O-O $1 $11 {and Black stays safe.} 11. Rxe6 fxe6 12. f7+ Kh8) 11. Rxe6+ $1 {[%emt 0:11:30]} fxe6 {[%emt 0:00:30]} (11... Kf8 $142 12. Re1 h6) 12. f7+ {[%emt 0:00:00]} Ke7 {[%emt 0:00:30]} 13. Ne4 {[%emt 0:01:00]} Qd5 {[%emt 0:06:30]} 14. Bg5+ {[%emt 0:00:00]} Kf8 {[%emt 0:00:30]} 15. Qf6 {[%emt 0:00:00]} h6 {[%emt 0:02:30]} 16. Qxh8+ {[%emt 0:00:30]} Kxf7 {[%emt 0:00:00]} 17. Qh7+ $18 {[%emt 0:00:30]} Kf8 {[%emt 0:02:00]} 18. Bxh6+ {[%emt 0:00:30]} Ke8 {[%emt 0:00:30]} 19. Nf6+ {[%emt 0:00:00]} Kd8 {[%emt 0:00:30]} 20. Nxd5 {[%emt 0:00:00]} 1-0

[Event "Turkey IS Bank Super League 2017"]
[Site "Darica-Kocaeli"]
[Date "2017.08.04"]
[Round "10"]
[White "Ayan, Bengu Sena"]
[Black "Onur, Cigdem"]
[Result "0-1"]
[ECO "E05"]
[WhiteElo "1862"]
[BlackElo "1699"]
[Annotator "NA RC"]
[PlyCount "64"]
[EventType "team-tourn"]
[EventCountry "TUR"]
[SourceTitle "playchess.com"]
[Source "ChessBase"]
[SourceQuality "1"]
[TimeControl "40/5400+30:1800+30"]

{[%evp 8,42,25,32767,32767,32767,32767,32767,32,24,18,-26,-17,-29,-33,-34,-6,-37,-31,-70,-10,-106,-103,-66,-116,-454,-460,-462,-478,-590,-654,-653,-466,32767,-514,-455,-507]} 1. d4 {[%emt 0:00:30]} d5 {[%emt 0:01:00]} 2. Nf3 {[%emt 0:00:30]} Nf6 {[%emt 0:00:30]} 3. g3 {[%emt 0:00:30]} e6 {[%emt 0:00:30]} 4. Bg2 {[%emt 0:00:30]} Be7 {[%emt 0:02:30]} 5. c4 {[%emt 0:03:30]} O-O {[%emt 0:00:30]} 6. O-O {[%emt 0:00:30]} dxc4 {[%emt 0:00:30]} 7. Qc2 {[%emt 0:01:30]} b5 {[%emt 0:05:30]} 8. a4 {[%emt 0:06:30] E05: Open Catalan: 5 Nf3 Be7} b4 {[%emt 0:11:30]} 9. Qxc4 {[%emt 0:09:30]} (9. Nfd2 c6 10. Nxc4 Qxd4 11. Rd1 Qc5 12. b3 Ba6 13. Nbd2 Nbd7 14. Bb2 Rad8 15. Rac1 Nb6 {½-½ (64) Ding,L (2781)-Wei,Y (2738) Danzhou 2017}) 9... Ba6 {[%emt 0:00:30]} 10. Qc2 {[%emt 0:00:30]} Nbd7 {[%emt 0:06:30]} 11. Ne5 {[%emt 0:16:30]} Nxe5 {[%emt 0:00:30] LiveBook: 6 Games} 12. Bxa8 {[%emt 0:16:30]} Qxd4 {[%emt 0:01:30]} 13. Bg2 {[%emt 0:07:30]} Nd5 $146 {[%emt 0:25:30]} ({Predecessor:} 13... c5 14. Rd1 Qc4 15. Qxc4 Nxc4 {½-½ (33) Kochyev,A (2372)-Ronka,E (2231) Hamina 2016}) 14. Re1 {[%emt 0:04:30] [#]} (14. Rd1 $11 Qg4 15. Re1 (15. Bxd5 exd5 16. Rxd5 b3 $15)) 14... Ng4 $1 {[%emt 0:08:30]} 15. e3 $1 {[%emt 0:07:30]} Qf6 {[%emt 0:01:30]} 16. h3 $2 {[%emt 0:02:21] [#]} (16. f3 $17 {is a better chance.} Ngxe3 17. Rxe3 (17. Bxe3 $2 Nxe3 18. Rxe3 Qd4 $17)) 16... b3 $1 {[%emt 0:02:30]} 17. Qd2 {[%emt 0:02:00]} Bb4 {[%emt 0:01:30]} 18. Nc3 {[%emt 0:00:45]} Nxc3 {[%emt 0:01:30]} 19. hxg4 {[%emt 0:01:31]} Ne2+ {[%emt 0:01:30]} 20. Rxe2 {[%emt 0:00:26]} Bxd2 {[%emt 0:01:30]} 21. Rxd2 {[%emt 0:00:04]} Rd8 $19 {[%emt 0:00:30]} 22. Be4 {[%emt 0:01:02]} Qe7 {[%emt 0:09:43]} 23. Ra3 {[%emt 0:02:35]} Bc4 {[%emt 0:01:22]} 24. Ra1 {[%emt 0:00:47]} c5 {[%emt 0:02:05]} 25. a5 {[%emt 0:02:46]} Rd6 {[%emt 0:06:24]} 26. Bg2 {[%emt 0:02:43]} Qd8 {[%emt 0:01:41]} 27. Rxd6 {[%emt 0:01:30]} Qxd6 {[%emt 0:00:30]} 28. a6 {[%emt 0:00:00]} Qd1+ {[%emt 0:00:47]} 29. Kh2 {[%emt 0:00:00]} Qe1 {[%emt 0:01:49]} 30. Kh3 {[%emt 0:00:26]} Qg1 {[%emt 0:03:30]} 31. Ra5 {[%emt 0:00:31]} Bf1 {[%emt 0:00:10]} 32. Bxf1 {[%emt 0:00:48]} Qh1# {[%emt 0:00:37]} 0-1

[Event "Turkey IS Bank Super League 2017"]
[Site "Darica-Kocaeli"]
[Date "2017.08.04"]
[Round "10"]
[White "Sade, Defne"]
[Black "Gundogan, Sinem Cagla"]
[Result "1/2-1/2"]
[ECO "C60"]
[WhiteElo "1654"]
[BlackElo "2000"]
[Annotator "NA"]
[PlyCount "145"]
[EventType "team-tourn"]
[EventCountry "TUR"]
[SourceTitle "playchess.com"]
[Source "ChessBase"]
[SourceQuality "1"]
[TimeControl "40/5400+30:1800+30"]

1. e4 {[%emt 0:00:30]} e5 {[%emt 0:01:00]} 2. Nf3 {[%emt 0:00:30]} Nc6 {[%emt 0:00:30]} 3. Bb5 {[%emt 0:00:30]} Nge7 {[%emt 0:00:30]} 4. Nc3 {[%emt 0:00:30]} d6 {[%emt 0:00:00] C60: Ruy Lopez: Unusual Black 3rd moves and 3...g6} (4... g6 5. d4 exd4 6. Nd5 Bg7 7. Bg5 h6 8. Bf6 Bxf6 9. Nxf6+ Kf8 10. Qd2 a6 11. Bc4 Nf5 12. Nd5 Nd6 13. Bd3 Kg7 14. O-O-O Re8 {1-0 (47) Navara,D (2726)-Movsesian,S (2653) Prague 2016}) 5. Nd5 {[%emt 0:01:30]} Bd7 {[%emt 0:08:00]} (5... a6 $5 {[%cal Ra6b5]} 6. Be2 Nxd5 7. exd5 Ne7 $11) 6. d4 {[%emt 0:04:30]} Ng6 {[%emt 0:07:30]} 7. O-O {[%emt 0:01:30]} Be7 {[%emt 0:02:30]} 8. Nxe7 {[%emt 0:04:30]} Qxe7 {[%emt 0:00:30]} 9. d5 {[%emt 0:04:30]} Nb8 {[%emt 0:00:00]} 10. Bxd7+ {[%emt 0:00:30]} Nxd7 {[%emt 0:00:00]} 11. Re1 $146 {[%emt 0:00:00]} ({Predecessor:} 11. c4 Nc5 12. Qc2 a5 13. Be3 O-O 14. b3 Qd7 {0-1 (42) Wafa,S (2010)-Mona,K (2084) Abu Dhabi 2013}) 11... O-O {[%emt 0:01:30]} 12. c4 {[%emt 0:03:00]} a5 {[%emt 0:03:30]} 13. b3 {[%emt 0:02:30]} Nc5 {[%emt 0:04:30]} 14. Qc2 {[%emt 0:02:30]} Qd7 {[%emt 0:06:30]} 15. Ng5 {[%emt 0:04:30]} f6 {[%emt 0:05:30]} 16. Nh3 {[%emt 0:03:30]} f5 {[%emt 0:07:30]} 17. exf5 {[%emt 0:16:30]} Rxf5 {[%emt 0:02:30]} 18. Ng5 {[%emt 0:02:30]} Raf8 {[%emt 0:01:30]} 19. f3 {[%emt 0:00:30]} Nh4 {[%emt 0:10:30]} 20. Be3 {[%emt 0:05:30]} b6 {[%emt 0:10:30]} 21. Ne4 {[%emt 0:04:30]} Qf7 {[%emt 0:20:39]} (21... Nxe4 $11 {keeps the balance.} 22. Qxe4 Ng6) 22. Bf2 {[%emt 0:04:30]} Nxe4 {[%emt 0:04:19]} 23. Bxh4 {[%emt 0:04:30]} Ng5 {[%emt 0:00:47]} 24. Bxg5 {[%emt 0:06:30]} Rxg5 {[%emt 0:00:30]} 25. Kh1 {[%emt 0:00:30]} Qh5 {[%emt 0:01:31]} 26. Re3 {[%emt 0:01:30]} Rf4 {[%emt 0:00:31]} 27. g4 {[%emt 0:04:50]} (27. Qf2 $11 {remains equal.}) 27... Qh6 {[%emt 0:00:39]} 28. Rae1 {[%emt 0:03:05]} Qf6 {[%emt 0:00:13]} 29. Qg2 {[%emt 0:00:39]} h5 {[%emt 0:00:37]} 30. h3 {[%emt 0:01:22]} hxg4 {[%emt 0:00:27]} 31. hxg4 {[%emt 0:00:43]} (31. fxg4 $17 {was the only defense.} Rg6 32. Kg1) 31... e4 $2 {[%emt 0:00:45]} (31... Rg6 $19 32. Kg1 Qg5) 32. Rxe4 {[%emt 0:05:02]} Rxf3 {[%emt 0:00:06]} 33. Re8+ {[%emt 0:06:01]} Kh7 {[%emt 0:00:40]} 34. Qh2+ {[%emt 0:00:24]} Qh6 {[%emt 0:00:39]} 35. Qxh6+ {[%emt 0:00:41]} Kxh6 {[%emt 0:00:27]} 36. Rh8+ {[%emt 0:00:15]} Kg6 {[%emt 0:00:14]} 37. Re6+ {[%emt 0:01:44]} Kf7 {[%emt 0:00:54]} 38. Re4 {[%emt 0:01:37]} Rf1+ {[%emt 0:01:00]} 39. Kg2 {[%emt 0:00:30]} Ra1 {[%emt 0:00:00]} 40. Kf3 {[%emt 0:00:00]} Rxa2 {[%emt 0:01:02]} 41. Rhe8 {[%emt 0:02:37]} (41. Rc8 $16) 41... Re5 {[%emt 0:05:30]} 42. R4xe5 {[%emt 0:00:30]} dxe5 {[%emt 0:00:30]} 43. Rxe5 {[%emt 0:03:30]} Rb2 {[%emt 0:01:30]} 44. Re3 {[%emt 0:00:00]} Rc2 {[%emt 0:00:30]} 45. Kf4 {[%emt 0:14:56]} a4 {[%emt 0:10:01]} 46. bxa4 {[%emt 0:00:30]} Rxc4+ {[%emt 0:00:30]} 47. Re4 {[%emt 0:00:30]} Rc5 {[%emt 0:00:30]} 48. Ke5 {[%emt 0:00:30]} c6 {[%emt 0:00:30]} 49. Rd4 {[%emt 0:00:00]} Ra5 {[%emt 0:03:18]} 50. Kd6 {[%emt 0:01:47]} cxd5 {[%emt 0:00:07]} 51. Kc6 {[%emt 0:01:31] [#]} Rc5+ $1 {[%emt 0:00:11]} 52. Kd6 {[%emt 0:09:46] [#]} Kf6 $1 {[%emt 0:02:45]} 53. g5+ {[%emt 0:00:50]} Kxg5 {[%emt 0:01:07]} 54. Rxd5+ {[%emt 0:00:00]} Rxd5+ {[%emt 0:03:16]} (54... Kf6 {[%emt 0:03:02]}) 55. Kxd5 {[%emt 0:00:07]} Kf6 {[%emt 0:00:30]} 56. Kc6 {[%emt 0:00:30]} g5 {[%emt 0:00:30]} 57. Kxb6 {[%emt 0:00:30]} g4 {[%emt 0:00:30]} 58. a5 {[%emt 0:00:30]} g3 {[%emt 0:00:30]} 59. a6 {[%emt 0:00:30]} g2 {[%emt 0:00:30]} 60. a7 {[%emt 0:00:30]} g1=Q+ {[%emt 0:00:30]} 61. Kb7 {[%emt 0:00:30]} Qg2+ {[%emt 0:00:30]} 62. Kb8 {[%emt 0:00:30]} Qg8+ {[%emt 0:00:30]} 63. Kb7 {[%emt 0:00:30]} Qd5+ {[%emt 0:00:30]} 64. Kb8 {[%emt 0:00:00]} Qd6+ {[%emt 0:02:59]} 65. Kb7 {[%emt 0:00:00]} Qd7+ {[%emt 0:00:00]} 66. Kb8 {[%emt 0:00:00]} Qb5+ {[%emt 0:01:16]} 67. Ka8 {[%emt 0:00:00]} Qc6+ {[%emt 0:00:13]} 68. Kb8 {[%emt 0:00:00]} Ke7 {[%emt 0:00:00]} 69. a8=Q {[%emt 0:00:00]} Qd6+ {[%emt 0:00:00]} 70. Ka7 {[%emt 0:00:00]} Qc5+ {[%emt 0:00:00]} 71. Ka6 $11 {[%emt 0:03:11]} Qa3+ {[%emt 0:00:30]} 72. Kb7 {[%emt 0:00:00]} Qxa8+ {[%emt 0:00:08]} 73. Kxa8 {[%emt 0:00:00]} 1/2-1/2